fUST/lending_fUST_20260205
["ID","MTS","AMOUNT","RATE_DAILY","PERIOD"]
[404532382,1770255048031,-172.59382175,0.00128999,60]
[404532383,1770255048041,-209.13568846,0.00129003,23]
[404532384,1770255048050,-78271.87992201,0.00129013,120]
[404532385,1770255048093,1006.72316262,0.00015,120]
[404532389,1770255429119,500.0,0.00013273,2]
[404532390,1770255429164,1000.0,0.00013821,2]
[404532391,1770255429220,500.26326599,0.00014368,2]
[404532397,1770255693927,203.123442,0.0001278,2]
[404532398,1770255940118,-300.0,0.00026798,2]
[404532399,1770255940138,-300.0,0.00026798,2]
[404532400,1770255940157,-300.0,0.00026798,2]
[404532401,1770255940177,-200.24646768,0.00026798,2]
[404532402,1770256038090,-999.75353232,0.00026798,2]
[404532403,1770256038113,-4090.40100936,0.00026798,2]
[404532404,1770256038133,-261.75,0.000268,2]
[404532405,1770256038152,-175.23,0.000274,2]
[404532406,1770256038172,-174.0,0.00028978,2]
[404532407,1770256038192,-1220.0,0.00029106,2]
[404532408,1770256038212,-185.8523217,0.00030102,2]
[404532409,1770256038234,-151.81958147,0.000332,117]
[404532410,1770256038256,-500.0,0.000334,7]
[404532411,1770256038281,-500.0,0.000334,7]
[404532412,1770256038301,-415.65574503,0.000334,7]
[404532413,1770256038321,-1350.8029409,0.00033401,2]
[404532414,1770256038340,-14818.38596401,0.00033401,2]
[404532415,1770256038359,-17141.332242,0.00034047,2]
[404532416,1770256038383,-157.85152966,0.00035552,10]
[404532417,1770256038404,-155.47,0.00037524,2]
[404532418,1770256038425,-158.06,0.00038356,120]
[404532419,1770256038447,-500.0,0.00038986,5]
[404532420,1770256038468,-1005.4616232,0.0003926,5]
[404532421,1770256038487,-300.0,0.0004015,20]
[404532422,1770256038506,-10023.0,0.0004016,7]
[404532423,1770256038527,-316.4947451,0.00043015,2]
[404532424,1770256038549,-4090.40100936,0.00043115,2]
[404532425,1770256038567,-2019.06926852,0.00048963,120]
[404532426,1770256038586,-316.49474509,0.00049266,2]
[404532427,1770256038607,-156.0,0.0005,120]
[404532428,1770256038627,-500.0,0.0005,120]
[404532429,1770256038647,-237.93764803,0.00050136,30]
[404532430,1770256038668,-185.35,0.000507,15]
[404532431,1770256038689,-236.09777489,0.00050999,120]
[404532432,1770256038709,-495.73067564,0.00050999,120]
[404532433,1770256038732,-165.26844242,0.00050999,120]
[404532434,1770256038753,-5000.0,0.00051,120]
[404532435,1770256038857,-5000.0,0.00052,120]
[404532436,1770256038875,-410.95,0.000529,120]
[404532437,1770256038893,-5000.0,0.00053,120]
[404532438,1770256038912,-5000.0,0.00054,120]
[404532439,1770256038932,-226.61549465,0.00054694,26]
[404532440,1770256038951,-324.04106642,0.00054784,4]
[404532441,1770256038973,-443.0,0.00054784,10]
[404532442,1770256038994,-369.16,0.00054784,10]
[404532443,1770256039014,-546.51385002,0.00054794,120]
[404532444,1770256039034,-332.34311874,0.00054794,120]
[404532445,1770256039055,-150.65359743,0.00054794,120]
[404532446,1770256039075,-500.0,0.00054794,120]
[404532447,1770256039094,-513.74093998,0.00054794,120]
[404532448,1770256039114,-2751.14,0.00054794,120]
[404532449,1770256039133,-500.0,0.00054794,120]
[404532450,1770256039152,-503.38966009,0.00054794,120]
[404532451,1770256039171,-232.75973349,0.00054794,120]
[404532452,1770256039190,-500.41632723,0.00054794,120]
[404532453,1770256039210,-503.94556302,0.00054794,120]
[404532454,1770256039231,-500.0,0.00054794,120]
[404532455,1770256039249,-501.78728873,0.00054794,120]
[404532456,1770256039269,-508.31559064,0.00054794,120]
[404532457,1770256039290,-486.85456304,0.00054794,120]
[404532458,1770256039309,-500.0,0.00054794,120]
[404532459,1770256039326,-201.76484174,0.00054794,120]
[404532460,1770256039344,-500.0,0.00054794,120]
[404532461,1770256039363,-335.92195395,0.00054794,120]
[404532462,1770256039384,-504.94094582,0.00054794,120]
[404532463,1770256039403,-500.0,0.00054794,120]
[404532464,1770256039424,-185.8661489,0.00054794,120]
[404532465,1770256039442,-212.79704955,0.00054794,120]
[404532466,1770256039465,-500.0,0.00054794,120]
[404532467,1770256039484,-500.0,0.00054794,120]
[404532468,1770256039503,-508.10803272,0.00054794,120]
[404532469,1770256039522,-500.0,0.00054794,2]
[404532470,1770256039542,-200.0,0.00054794,120]
[404532471,1770256039561,-530.96790301,0.00054794,120]
[404532472,1770256039580,-500.0,0.00054794,120]
[404532473,1770256039600,-500.0,0.00054794,7]
[404532474,1770256039618,-1000.0,0.00054794,2]
[404532475,1770256039636,-153.11531469,0.00054794,120]
[404532476,1770256039656,-500.0,0.00054794,120]
[404532477,1770256039676,-525.40020828,0.00054794,120]
[404532478,1770256039696,-536.73499895,0.00054794,120]
[404532479,1770256039716,-150.24846515,0.00054794,120]
[404532480,1770256039737,-500.0,0.00054794,120]
[404532481,1770256039757,-500.0,0.00054794,120]
[404532482,1770256039777,-500.0,0.00054794,120]
[404532483,1770256039797,-500.0,0.00054794,120]
[404532484,1770256039816,-500.0,0.00054794,120]
[404532485,1770256039834,-164.82628915,0.00054794,120]
[404532486,1770256039853,-500.0,0.00054794,120]
[404532487,1770256039873,-607.89749218,0.00054794,120]
[404532488,1770256039892,-500.0,0.00054794,120]
[404532489,1770256039911,-503.21245208,0.00054794,120]
[404532490,1770256039932,-500.0,0.00054794,120]
[404532491,1770256039957,-500.97543209,0.00054794,120]
[404532492,1770256039983,-156.65534533,0.00054794,60]
[404532493,1770256043091,-251.2,0.0004,120]
[404532494,1770256043115,-294.57881825,0.00043015,2]
[404532495,1770256043141,-419.63905061,0.00054794,60]
[404532496,1770256043166,-503.93949317,0.00054794,120]
[404532497,1770256043190,-500.0,0.00054794,54]
[404532498,1770256043213,-552.62178076,0.00054794,30]
[404532499,1770256043239,-500.0,0.00054794,120]
[404532500,1770256043262,-205.88427203,0.00054794,120]
[404532501,1770256043285,-500.0,0.00054794,120]
[404532502,1770256043309,-503.72482434,0.00054794,120]
[404532503,1770256043334,-506.16088212,0.00054794,120]
[404532504,1770256043359,-552.95775587,0.00054794,120]
[404532505,1770256043390,-558.10707326,0.00054794,120]
[404532506,1770256043415,-500.0,0.00054794,120]
[404532507,1770256043437,-539.16556349,0.00054794,120]
[404532508,1770256043463,-524.06018902,0.00054794,120]
[404532509,1770256043487,-171.26155348,0.00054794,120]
[404532510,1770256043508,-504.33053639,0.00054794,120]
[404532511,1770256043533,-513.03619555,0.00054794,120]
[404532512,1770256043561,-449.15851084,0.00054794,120]
[404532513,1770256043585,-500.18826923,0.00054794,2]
[404532514,1770256043608,-605.91805844,0.00054794,120]
[404532515,1770256043631,-502.65121956,0.00054794,120]
[404532516,1770256043656,-467.7517144,0.00054794,120]
[404532517,1770256043678,-437.32067554,0.00054794,120]
[404532518,1770256043701,-505.86223391,0.00054794,120]
[404532519,1770256043724,-516.13210522,0.00054794,120]
[404532520,1770256043745,-501.16328168,0.00054794,120]
[404532521,1770256043765,-525.49673895,0.00054794,120]
[404532522,1770256043788,-552.39025015,0.00054794,120]
[404532523,1770256043809,-540.98021468,0.00054794,120]
[404532524,1770256043832,-561.93745972,0.00054794,120]
[404532525,1770256043857,-533.50559143,0.00054794,120]
[404532526,1770256043879,-770.86894693,0.00054794,120]
[404532528,1770256146102,-741.08018794,0.00028,7]
[404532529,1770256146121,-568.12361266,0.00028,3]
[404532530,1770256146141,-122.35379531,0.00046687,2]
[404532531,1770256153095,-2799.71019738,0.00026849,2]
[404532532,1770256157116,-320.28404759,0.00026849,2]
[404532533,1770256157137,-3119.99424497,0.00043165,2]
[404532534,1770256157157,-1430.53851989,0.00046687,2]
[404532535,1770256157175,-5261.26472166,0.00054694,28]
[404532536,1770256157194,-196.38587882,0.00054694,120]
[404532537,1770256157213,-347.01147295,0.00054793,120]
[404532538,1770256157239,-157.29508278,0.00054793,120]
[404532539,1770256157259,-230.20785946,0.00054794,120]
[404532540,1770256157279,-577.10046655,0.00054794,120]
[404532541,1770256157299,-500.65704158,0.00054794,120]
[404532542,1770256157318,-555.90432667,0.00054794,120]
[404532543,1770256157337,-623.03016595,0.00054794,120]
[404532544,1770256157445,-500.0,0.00054794,120]
[404532545,1770256157466,-604.00199303,0.00054794,120]
[404532546,1770256157485,-500.51534636,0.00054794,2]
[404532547,1770256157504,-500.0,0.00054794,120]
[404532548,1770256157523,-548.43586158,0.00054794,120]
[404532549,1770256157541,-559.24109974,0.00054794,120]
[404532550,1770256157560,-500.0,0.00054794,120]
[404532551,1770256157579,-264.63704227,0.00054794,120]
[404532552,1770256157599,-151.53185421,0.00054794,120]
[404532553,1770256157619,-210.22231636,0.00054794,120]
[404532554,1770256157638,-627.7257463,0.00054794,120]
[404532555,1770256157657,-500.72840273,0.00054794,31]
[404532556,1770256157676,-500.0,0.00054794,120]
[404532557,1770256157695,-500.0,0.00054794,30]
[404532558,1770256157715,-500.0,0.00054794,2]
[404532559,1770256157734,-500.0,0.00054794,120]
[404532560,1770256157753,-500.0,0.00054794,120]
[404532561,1770256157772,-269.45224128,0.00054794,120]
[404532562,1770256157790,-500.0,0.00054794,120]
[404532563,1770256157809,-500.0,0.00054794,120]
[404532564,1770256157828,-500.0,0.00054794,120]
[404532565,1770256157848,-500.29425682,0.00054794,120]
[404532566,1770256157870,-157.23355334,0.00054794,120]
[404532567,1770256157890,-539.60895977,0.00054794,120]
[404532568,1770256157909,-500.0,0.00054794,120]
[404532569,1770256157928,-509.43588178,0.00054794,120]
[404532570,1770256157947,-376.53377686,0.00054794,120]
[404532601,1770256231987,-131.63573178,0.00054794,120]
[404532602,1770256231996,-586.39608682,0.00054794,120]
[404532603,1770256232005,-500.0,0.00054794,120]
[404532604,1770256232014,-500.0,0.00054794,120]
[404532605,1770256232023,-123.30076573,0.00054794,120]
[404532628,1770256237591,-376.69923427,0.00054794,120]
[404532630,1770256237600,-421.82199968,0.00054794,120]
[404532704,1770256239804,-78.17800032,0.00054794,120]
[404532706,1770256239813,-509.58008762,0.00054794,120]
[404532708,1770256239822,-509.8949288,0.00054794,120]
[404532710,1770256239831,-160.36691223,0.00054794,120]
[404532712,1770256239840,-188.34012505,0.00054794,120]
[404532713,1770256239849,-583.0517339,0.00054794,2]
[404532715,1770256239858,-500.0,0.00054794,120]
[404532717,1770256239867,-528.64781115,0.00054794,120]
[404532719,1770256239879,-195.39064717,0.00054794,120]
[404532721,1770256239888,-162.19506065,0.00054794,120]
[404532732,1770256239977,-529.23618456,0.00054794,120]
[404532734,1770256239986,-249.94499366,0.00054794,60]
[404532736,1770256239996,-500.0,0.00054794,120]
[404532738,1770256240005,-605.38,0.00054794,2]
[404532740,1770256240014,-515.45703989,0.00054794,120]
[404532742,1770256240023,-227.74954396,0.00054794,120]
[404532744,1770256240032,-519.12676861,0.00054794,120]
[404532746,1770256240041,-500.0,0.00054794,10]
[404532748,1770256240050,-185.61200096,0.00054794,120]
[404532750,1770256240060,-500.0,0.00054794,120]
[404532752,1770256240069,-500.0,0.00054794,120]
[404532754,1770256240079,-2636.51,0.00054794,120]
[404532756,1770256240087,-170.00041135,0.00054794,120]
[404532758,1770256240096,-500.0,0.00054794,120]
[404532760,1770256240105,-530.65760687,0.00054794,7]
[404532762,1770256240120,-500.0,0.00054794,120]
[404532764,1770256240135,-500.0,0.00054794,120]
[404532766,1770256240144,-700.9869,0.00054794,120]
[404532768,1770256240154,-500.30869919,0.00054794,120]
[404532770,1770256240164,-175.17485868,0.00054794,120]
[404532772,1770256240173,-500.0,0.00054794,120]
[404532774,1770256240184,-500.0,0.00054794,120]
[404532776,1770256240193,-500.0,0.00054794,21]
[404532778,1770256240202,-500.0,0.00054794,120]
[404532780,1770256240215,-500.0,0.00054794,120]
[404532782,1770256240226,-500.0,0.00054794,90]
[404532784,1770256240236,-500.0,0.00054794,120]
[404532786,1770256240244,-473.77480552,0.00054794,120]
[404532788,1770256240253,-500.0,0.00054794,120]
[404532790,1770256240262,-154.839934,0.00054794,120]
[404532792,1770256240271,-500.0,0.00054794,120]
[404532794,1770256240280,-230.92436592,0.00054794,120]
[404532796,1770256240289,-269.7614484,0.00054794,120]
[404532798,1770256240298,-500.0,0.00054794,120]
[404532800,1770256240306,-500.0,0.00054794,120]
[404532802,1770256240315,-604.47856671,0.00054794,120]
[404532804,1770256240323,-167.31227222,0.00054794,120]
[404532806,1770256240332,-519.4407474,0.00054794,120]
[404532808,1770256240341,-176.49286471,0.00054794,120]
[404532810,1770256240350,-500.0,0.00054794,120]
[404532812,1770256240359,-251.73623395,0.00054794,120]
[404532814,1770256240368,-640.35882736,0.00054794,120]
[404532816,1770256240377,-269.68270385,0.00054794,120]
[404532818,1770256240385,-500.0,0.00054794,120]
[404532820,1770256240394,-296.61225386,0.00054794,120]
[404532822,1770256240403,-500.0,0.00054794,120]
[404532824,1770256240412,-411.21591294,0.00054794,120]
[404532826,1770256240422,-500.0,0.00054794,120]
[404532828,1770256240432,-358.15977184,0.00054794,120]
[404532830,1770256240441,-167.33804382,0.00054794,120]
[404532832,1770256240450,-452.00562925,0.00054794,120]
[404532834,1770256240462,-500.0,0.00054794,120]
[404532836,1770256240471,-500.0,0.00054794,120]
[404532838,1770256240481,-500.0,0.00054794,120]
[404532840,1770256240490,-512.82134511,0.00054794,120]
[404532842,1770256240500,-256.69869908,0.00054794,120]
[404532844,1770256240509,-521.53983609,0.00054794,120]
[404532846,1770256240518,-175.15417767,0.00054794,120]
[404532848,1770256240526,-5000.0,0.00055,120]
[404532850,1770256240535,-156.0,0.000554,120]
[404532852,1770256240544,-242.90803106,0.00055615,120]
[404532854,1770256240553,-500.0,0.00055616,120]
[404532856,1770256240561,-500.0,0.00055616,120]
[404532858,1770256240571,-502.72641577,0.00055616,120]
[404532860,1770256240580,-502.7925264,0.00055616,120]
[404532862,1770256240588,-502.29575398,0.00055616,120]
[404532864,1770256240597,-500.0,0.00055616,120]
[404532866,1770256240606,-500.0,0.00055616,2]
[404532868,1770256240615,-200.0,0.00055616,120]
[404532870,1770256240624,-493.292032,0.00055616,120]
[404532871,1770256240633,-1024.43975218,0.00055616,2]
[404532873,1770256240642,-506.89205309,0.00055616,120]
[404532875,1770256240651,-505.76759707,0.00055616,120]
[404532877,1770256240660,-385.40242428,0.00055616,54]
[404532879,1770256240669,-153.93593277,0.00055616,120]
[404532881,1770256240678,-500.0,0.00055616,120]
[404532883,1770256240687,-500.0,0.00055616,120]
[404532885,1770256240696,-153.5337817,0.00055616,120]
[404532887,1770256240705,-173.7863961,0.00055616,120]
[404532889,1770256240714,-160.91069284,0.00055616,120]
[404532891,1770256240723,-500.0,0.00055616,30]
[404532893,1770256240733,-515.55496415,0.00055616,2]
[404532895,1770256240742,-500.0,0.00055616,120]
[404532898,1770256240751,-500.0,0.00055616,120]
[404532900,1770256240760,-500.0,0.00055616,120]
[404532902,1770256240769,-501.89025028,0.00055616,120]
[404532903,1770256240779,-500.0,0.00055616,120]
[404532905,1770256240788,-577.35228612,0.00055616,120]
[404532907,1770256240797,-500.0,0.00055616,120]
[404532909,1770256240806,-500.0,0.00055616,120]
[404532911,1770256240815,-501.17121242,0.00055616,120]
[404532913,1770256240823,-515.91120941,0.00055616,120]
[404532914,1770256240832,-500.0,0.00055616,120]
[404532916,1770256240841,-500.0,0.00055616,120]
[404532918,1770256240850,-605.38,0.00055616,2]
[404532920,1770256240859,-500.0,0.00055616,10]
[404532922,1770256240867,-164.67377346,0.00055616,120]
[404532985,1770256241669,-335.32622654,0.00055616,120]
[404532987,1770256241678,-174.77771154,0.00055616,120]
[404532989,1770256241687,-2636.51,0.00055616,120]
[404532991,1770256241696,-500.0,0.00055616,120]
[404532993,1770256241705,-500.0,0.00055616,120]
[404532995,1770256241716,-465.56627031,0.00055616,120]
[404532997,1770256241725,-500.0,0.00055616,120]
[404532999,1770256241734,-500.0,0.00055616,120]
[404533001,1770256241743,-500.0,0.00055616,21]
[404533003,1770256241752,-500.0,0.00055616,120]
[404533004,1770256241763,-500.0,0.00055616,90]
[404533006,1770256241771,-477.80797488,0.00055616,120]
[404533008,1770256241781,-500.0,0.00055616,120]
[404533010,1770256241790,-500.0,0.00055616,120]
[404533012,1770256241799,-500.0,0.00055616,120]
[404533014,1770256241808,-500.0,0.00055616,120]
[404533016,1770256241816,-500.0,0.00055616,120]
[404533018,1770256241825,-500.0,0.00055616,120]
[404533020,1770256241834,-160.51860337,0.00055616,120]
[404533022,1770256241844,-500.0,0.00055616,120]
[404533024,1770256241853,-500.0,0.00055616,120]
[404533026,1770256241862,-392.68548733,0.00055616,120]
[404533288,1770256244307,-107.31451267,0.00055616,120]
[404533290,1770256244316,-500.0,0.00055616,120]
[404533292,1770256244325,-3435.46432733,0.00056,120]
[404533294,1770256244337,-1564.53567267,0.00056,120]
[404533296,1770256244346,-999.0,0.00056437,120]
[404533298,1770256244355,-500.0,0.00056438,120]
[404533300,1770256244363,-500.0,0.00056438,120]
[404533302,1770256244372,-239.9353917,0.00056438,120]
[404533304,1770256244382,-500.0,0.00056438,2]
[404533306,1770256244391,-201.90736321,0.00056438,120]
[404533308,1770256244401,-500.0,0.00056438,120]
[404533310,1770256244410,-500.0,0.00056438,120]
[404533312,1770256244421,-456.26400231,0.00056438,30]
[404533314,1770256244432,-500.0,0.00056438,120]
[404533316,1770256244441,-500.0,0.00056438,120]
[404533318,1770256244450,-500.0,0.00056438,120]
[404533320,1770256244460,-500.0,0.00056438,120]
[404533322,1770256244470,-500.0,0.00056438,120]
[404533324,1770256244479,-266.85264154,0.00056438,120]
[404533326,1770256244490,-233.14735846,0.00056438,120]
[404533328,1770256244501,-500.0,0.00056438,120]
[404533330,1770256244510,-567.66560272,0.00056438,120]
[404533341,1770256244597,-605.38,0.00056438,2]
[404533343,1770256244606,-500.0,0.00056438,10]
[404533345,1770256244616,-462.39944215,0.00056438,120]
[404533347,1770256244625,-2136.070857,0.00056438,120]
[404533419,1770256257021,2359.3591042,0.00049723,2]
[404533420,1770256261612,945.1349137,0.00030137,120]
[404533421,1770256261646,4054.8650863,0.00030137,120]
[404533422,1770256273048,5000.0,0.00030137,120]
[404533423,1770256290701,5000.0,0.00030137,120]
[404533424,1770256307007,5051.46,0.00030137,120]
[404533425,1770256454153,397.19995272,0.00040167,120]
[404533426,1770256510587,3157.63861831,0.00040167,30]
[404533427,1770256900057,-1500.0,0.00025,2]
[404533428,1770256900085,-187.29,0.00025,2]
[404533429,1770256900111,-2650.86935978,0.00025055,2]
[404533430,1770256900136,-110.51230722,0.00025055,2]
[404533433,1770257133973,-187.29,0.00025,2]
[404533434,1770257133998,-152.18884633,0.00025055,2]
[404533435,1770257134022,-249.11385662,0.00025055,2]
[404533436,1770257134046,-2513.76242812,0.0002511,2]
[404533437,1770257134071,-4530.30225273,0.0002511,2]
[404533438,1770257134095,-741.26793723,0.00025192,2]
[404533439,1770257134119,-1200.0,0.00025203,2]
[404533440,1770257134142,-300.0,0.00025204,2]
[404533441,1770257134164,-300.0,0.00025204,2]
[404533442,1770257134187,-300.0,0.00025204,2]
[404533443,1770257134211,-300.0,0.00025204,2]
[404533444,1770257134233,-338.5428521,0.00025463,2]
[404533445,1770257134255,-517.4421378,0.00025876,3]
[404533446,1770257134278,-420.0,0.00027299,2]
[404533447,1770257134302,-420.0,0.00027299,2]
[404533448,1770257134325,-420.0,0.00027299,2]
[404533449,1770257134349,-350.0,0.00027299,2]
[404533450,1770257134372,-1680.0,0.00027421,2]
[404533451,1770257134397,-155.47,0.00028533,2]
[404533452,1770257134421,-316.4947451,0.00028642,2]
[404533453,1770257134447,-9608.12494397,0.00028742,2]
[404533454,1770257135030,-25000.0,0.00028742,2]
[404533455,1770257135790,-13544.9264912,0.00028742,2]
[404533456,1770257135815,-300.0,0.0002923,2]
[404533457,1770257135840,-182.0,0.00029567,2]
[404533458,1770257135866,-312.0,0.00029567,2]
[404533459,1770257135896,-1940.0,0.00029834,2]
[404533460,1770257135923,-158.06,0.00038356,120]
[404533461,1770257135950,-157.85152966,0.0003896,10]
[404533462,1770257135981,-8405.16197914,0.00040165,7]
[404533463,1770257136762,-1617.83802086,0.00040165,7]
[404533464,1770257136794,-155.88508401,0.00041475,2]
[404533465,1770257136827,-4530.30225273,0.00041486,2]
[404533466,1770257136858,-500.0,0.00041575,31]
[404533467,1770257136889,-500.0,0.00041575,31]
[404533468,1770257137019,-500.0,0.00041575,7]
[404533469,1770257137054,-500.0,0.00041575,31]
[404533470,1770257137088,-500.0,0.00041575,31]
[404533471,1770257137118,-500.0,0.00041575,31]
[404533472,1770257137148,-500.0,0.00041575,31]
[404533473,1770257137179,-500.0,0.00041575,7]
[404533474,1770257137213,-500.0,0.00041575,31]
[404533475,1770257137243,-500.0,0.00041575,31]
[404533476,1770257137275,-500.0,0.00041575,31]
[404533477,1770257137306,-160.75979179,0.00041575,31]
[404533478,1770257137339,-500.0,0.00041575,7]
[404533479,1770257137375,-500.0,0.00041575,31]
[404533480,1770257137407,-239.73916737,0.00041575,31]
[404533481,1770257137443,-500.0,0.00041575,31]
[404533482,1770257137477,-500.0,0.00041575,31]
[404533483,1770257137509,-500.0,0.00041575,31]
[404533484,1770257137544,-497.23338156,0.00041575,7]
[404533485,1770257137577,-500.0,0.00041575,31]
[404533486,1770257137610,-500.0,0.00041575,31]
[404533487,1770257137641,-500.0,0.00041575,31]
[404533488,1770257137676,-527.26586821,0.00041575,31]
[404533489,1770257137712,-500.0,0.00041575,31]
[404533490,1770257137746,-500.0,0.00041575,31]
[404533491,1770257137781,-500.0,0.00041575,31]
[404533492,1770257137815,-500.0,0.00041575,31]
[404533493,1770257137846,-500.0,0.00041575,31]
[404533494,1770257137880,-500.0,0.00041575,31]
[404533495,1770257137914,-500.0,0.00041575,31]
[404533496,1770257137946,-500.0,0.00041575,31]
[404533497,1770257137979,-500.0,0.00041575,31]
[404533498,1770257138013,-500.0,0.00041575,31]
[404533499,1770257138043,-2000.0,0.00041577,7]
[404533500,1770257138072,-316.49474509,0.00042901,2]
[404533501,1770257138103,-185.35,0.000482,15]
[404533502,1770257138133,-269.13168838,0.000485,120]
[404533503,1770257164004,500.0,0.00013699,2]
[404533504,1770257164037,1000.0,0.00014247,2]
[404533505,1770257164163,501.88016245,0.00014795,2]
[404533506,1770257176975,1266.48596838,0.00040153,120]
[404533508,1770257226322,500.55069716,0.00013699,2]
[404533574,1770257431837,-174.79,0.000268,2]
[404533575,1770257431846,-4228.28210255,0.00026849,2]
[404533577,1770257431855,-1200.0,0.00035259,3]
[404533579,1770257431864,-500.0,0.00038986,5]
[404533580,1770257431874,-1005.4616232,0.0003926,5]
[404533582,1770257431883,-1843.83488063,0.00040153,2]
[404533584,1770257431892,-167.0,0.00043,90]
[404533585,1770257431901,-168.0,0.00044877,90]
[404533587,1770257431910,-627.0580435,0.00047353,120]
[404533588,1770257431918,-236.09777489,0.00047353,120]
[404533589,1770257431927,-22872.76999448,0.00047354,2]
[404533616,1770257437954,-238.09,0.0004,90]
[404533617,1770257437964,-238.09,0.00042,90]
[404533618,1770257437974,-221.91482017,0.00047353,7]
[404533619,1770257437983,-526.63768526,0.00047353,31]
[404533620,1770257437992,-500.0,0.00047353,120]
[404533621,1770257438002,-391.9184298,0.00047353,120]
[404533622,1770257438012,-3573.79437159,0.00047354,2]
[404533997,1770257445948,-165.26844242,0.00047353,120]
[404533999,1770257445958,-24365.37209683,0.00047354,2]
[404534001,1770257445967,-5445.84628548,0.000483,28]
[404534003,1770257445976,-461.59083812,0.000484,2]
[404534005,1770257445985,-331.03417276,0.000485,120]
[404534007,1770257445995,-166.0,0.0005,120]
[404534009,1770257446005,-193.56281,0.00050968,2]
[404534011,1770257446015,-741.26793723,0.00051813,2]
[404534013,1770257446024,-161.1521132,0.0005195,2]
[404534015,1770257446033,-1004.7378186,0.0005195,2]
[404534017,1770257446042,-461.5908381,0.0005278,120]
[404534019,1770257446052,-500.0,0.0005452,120]
[404534021,1770257446060,-500.0,0.0005452,120]
[404534023,1770257446070,-500.0,0.0005452,120]
[404534025,1770257446079,-500.0,0.0005452,120]
[404534027,1770257446088,-214.05378658,0.0005452,120]
[404534028,1770257446097,-152.02151115,0.00054593,120]
[404534031,1770257446107,-178.58051786,0.00054593,120]
[404534033,1770257446116,-410.95,0.00054691,120]
[404534034,1770257446125,-187.64825042,0.00054693,103]
[404534037,1770257446134,-520.94162593,0.00054694,2]
[404534038,1770257446143,-2700.45,0.00054784,10]
[404534041,1770257446153,-151.0,0.00054792,30]
[404534043,1770257446162,-500.0,0.00054794,120]
[404534044,1770257446171,-500.0,0.00054794,120]
[404534046,1770257446180,-500.0,0.00054794,54]
[404534048,1770257446189,-227.36348612,0.00054794,120]
[404534050,1770257446198,-504.22568336,0.00054794,2]
[404534052,1770257446207,-150.0,0.00054794,120]
[404534054,1770257446216,-500.0,0.00054794,120]
[404534056,1770257446225,-500.0,0.00054794,120]
[404534058,1770257446235,-500.0,0.00054794,120]
[404534060,1770257446244,-500.0,0.00054794,120]
[404534062,1770257446253,-500.0,0.00054794,120]
[404534064,1770257446262,-500.0,0.00054794,120]
[404534066,1770257446273,-516.08268312,0.00054794,120]
[404534068,1770257446283,-500.0,0.00054794,120]
[404534069,1770257446292,-500.0,0.00054794,120]
[404534070,1770257446301,-500.0,0.00054794,120]
[404534071,1770257446310,-500.0,0.00054794,120]
[404534072,1770257446319,-605.91805844,0.00054794,120]
[404534073,1770257446328,-205.88427203,0.00054794,120]
[404534074,1770257446338,-500.0,0.00054794,120]
[404534075,1770257446347,-500.0,0.00054794,120]
[404534076,1770257446360,-500.0,0.00054794,120]
[404534077,1770257446370,-304.16913502,0.00054794,2]
[404534078,1770257446379,-552.39025015,0.00054794,120]
[404534079,1770257446388,-500.0,0.00054794,120]
[404534080,1770257446398,-332.34311874,0.00054794,120]
[404534081,1770257446407,-150.65359743,0.00054794,120]
[404534082,1770257446416,-546.51385002,0.00054794,120]
[404534083,1770257446426,-241.41906398,0.00054794,120]
[404534084,1770257446529,-500.0,0.00054794,120]